{"text_format":"1","workbook":"xlsx","n_sheets":2,"sheets":["Styles","Instructions"],"not_rendered":{"charts":0,"images":0,"macros":1,"external_links":0,"defined_names":1,"comments":0,"pivot_tables":0},"unopened":[],"bounds":{"document_bytes":16777216,"sheet_cells":100000,"rows_first":2000,"rows_last":500,"rows_between":2000,"halvings":0,"cell_chars":16384,"cell_head_chars":4096},"cells_cut":0,"cells_raw":0,"read":"whole","date_system":"1900"}

{"sheet":"Styles","index":0,"n_rows":150,"n_cols":8,"rows_kept":150,"cut":false,"hidden":false,"merged":[]}
["Style No.","Description","Category","Tier","Fabric","Fit","Reference","CAD"]
["24010","French Terry Mars Tee with Gel Print Space Shape and Quilted Rib Patch",null,{"$f":"settier(Table1[[#This Row],[Style No.]])","v":"Fashion Basic"}]
["24010P","French Terry Mars Jogger with Ankle Zippers and Quilted Rib Patch",null,{"$f":"settier(Table1[[#This Row],[Style No.]])","v":"Fashion Basic"}]
["27010","",null,{"$f":"settier(Table1[[#This Row],[Style No.]])","v":"Fashion"}]
["44010","",null,{"$f":"settier(Table1[[#This Row],[Style No.]])","v":"Fashion Basic"}]
["44010P","",null,{"$f":"settier(Table1[[#This Row],[Style No.]])","v":"Fashion Basic"}]
["44011","",null,{"$f":"settier(Table1[[#This Row],[Style No.]])","v":"Fashion Basic"}]
["44012","",null,{"$f":"settier(Table1[[#This Row],[Style No.]])","v":"Fashion Basic"}]
["44013","",null,{"$f":"settier(Table1[[#This Row],[Style No.]])","v":"Fashion Basic"}]
["44013P","",null,{"$f":"settier(Table1[[#This Row],[Style No.]])","v":"Fashion Basic"}]
["44014","Slub-and-Strip mixed media crewneck",null,{"$f":"settier(Table1[[#This Row],[Style No.]])","v":"Fashion Basic"}]
["44014P","Slub-and-Strip mixed media Jogger",null,{"$f":"settier(Table1[[#This Row],[Style No.]])","v":"Fashion Basic"}]
["44015","RELAXED FIT KNIT DENIM",null,{"$f":"settier(Table1[[#This Row],[Style No.]])","v":"Fashion Basic"}]
["44016","STRAIGHT FIT KNIT DENIM",null,{"$f":"settier(Table1[[#This Row],[Style No.]])","v":"Fashion Basic"}]
["44017","SLIM STRAIGHT FIT KNIT DENIM",null,{"$f":"settier(Table1[[#This Row],[Style No.]])","v":"Fashion Basic"}]
["44018","SUPPER SKINNY FIT KNIT DENIM",null,{"$f":"settier(Table1[[#This Row],[Style No.]])","v":"Fashion Basic"}]
["44019","320 GSM Matte PU and Acid Wash French Terry Mixed Media Hoodie (set with RB5JO0006)",null,{"$f":"settier(Table1[[#This Row],[Style No.]])","v":"Fashion Basic"}]
["47010","",null,{"$f":"settier(Table1[[#This Row],[Style No.]])","v":"Fashion"}]
["47010P","",null,{"$f":"settier(Table1[[#This Row],[Style No.]])","v":"Fashion"}]
["47011","",null,{"$f":"settier(Table1[[#This Row],[Style No.]])","v":"Fashion"}]
["47011P","",null,{"$f":"settier(Table1[[#This Row],[Style No.]])","v":"Fashion"}]
["47012","",null,{"$f":"settier(Table1[[#This Row],[Style No.]])","v":"Fashion"}]
["47012P","",null,{"$f":"settier(Table1[[#This Row],[Style No.]])","v":"Fashion"}]
["47013","",null,{"$f":"settier(Table1[[#This Row],[Style No.]])","v":"Fashion"}]
["47013P","",null,{"$f":"settier(Table1[[#This Row],[Style No.]])","v":"Fashion"}]
["47014","",null,{"$f":"settier(Table1[[#This Row],[Style No.]])","v":"Fashion"}]
["47014P","",null,{"$f":"settier(Table1[[#This Row],[Style No.]])","v":"Fashion"}]
["47015H","240 GSM French Terry Pullover Hoodie with Tonal Gel Printed Royal King and PU String",null,{"$f":"settier(Table1[[#This Row],[Style No.]])","v":"Fashion"}]
["47015P","French Terry Jogger with Toal Gel Printed Royal King",null,{"$f":"settier(Table1[[#This Row],[Style No.]])","v":"Fashion"}]
["47015SH","240 GSM French Terry Shorts with Tonal Gel Printed Royal King and PU String",null,{"$f":"settier(Table1[[#This Row],[Style No.]])","v":"Fashion"}]
["47015HY","240 GSM French Terry Hybrit with Tonal Gel Printed Royal King and PU String",null,{"$f":"settier(Table1[[#This Row],[Style No.]])","v":"Fashion"}]
["47015T","240 GSM French Terry Tee with Tonal Gel Printed Royal King and PU String",null,{"$f":"settier(Table1[[#This Row],[Style No.]])","v":"Fashion"}]
[47016,"240GSM Marijuana Prited French Terry Crewneck",null,{"$f":"settier(Table1[[#This Row],[Style No.]])","v":"Fashion"}]
["47016-1","240GSM \"Hydro\" Marijuana Printed French Terry Crewneck with Gel Stripe",null,{"$f":"settier(Table1[[#This Row],[Style No.]])","v":"Fashion"}]
["47016P","240GSM Marijuana Printed French Terry Jogger",null,{"$f":"settier(Table1[[#This Row],[Style No.]])","v":"Fashion"}]
["47016TK","Tricot &Mesh Mixed-Media  Marijuana Sublimation Printed Tank",null,{"$f":"settier(Table1[[#This Row],[Style No.]])","v":"Fashion"}]
["47017T","240 GSM French Terry Water Printed Loose Fit Tee W/ Contrast Sleeve and Back",null,{"$f":"settier(Table1[[#This Row],[Style No.]])","v":"Fashion"}]
["47017SH","240 GSM French Terry Water Printed Drop Crotch Shorts W/ Contrast Waist, Bottom and Drawcord ",null,{"$f":"settier(Table1[[#This Row],[Style No.]])","v":"Fashion"}]
["47017JO","240 GSM French Terry Water Printed Loose Fit Jogger Pants W/ Contrast Waist, Bottom and Drawcord ",null,{"$f":"settier(Table1[[#This Row],[Style No.]])","v":"Fashion"}]
["47017CP","240 GSM French Terry Water Printed Drop Crotch Carpri Pants W/ Contrast Waist, Bottom and Drawcord ",null,{"$f":"settier(Table1[[#This Row],[Style No.]])","v":"Fashion"}]
["47017SH","240 GSM French Terry Water Printed Drop Crotch Carpri Pants W/ Contrast Waist, Bottom and Drawcord ",null,{"$f":"settier(Table1[[#This Row],[Style No.]])","v":"Fashion"}]
["47018T","Hacker Denim Tee",null,{"$f":"settier(Table1[[#This Row],[Style No.]])","v":"Fashion"}]
["47018SH","HackerHerem Fit Denim Crop Shorts",null,{"$f":"settier(Table1[[#This Row],[Style No.]])","v":"Fashion"}]
["47019JO","240 GSM French Terry Water Printed Loose Fit Jogger Pants W/ Contrast Waist, Bottom and Drawcord ",null,{"$f":"settier(Table1[[#This Row],[Style No.]])","v":"Fashion"}]
["47017CP","240 GSM French Terry Water Printed Drop Crotch Carpri Pants W/ Contrast Waist, Bottom and Drawcord ",null,{"$f":"settier(Table1[[#This Row],[Style No.]])","v":"Fashion"}]
["47017SH","240 GSM French Terry Water Printed Drop Crotch Carpri Pants W/ Contrast Waist, Bottom and Drawcord ",null,{"$f":"settier(Table1[[#This Row],[Style No.]])","v":"Fashion"}]
[null,null,null,{"$f":"settier(Table1[[#This Row],[Style No.]])","v":""}]
[null,null,null,{"$f":"settier(Table1[[#This Row],[Style No.]])","v":""}]
["47018SH","210 GSM T/C Raw Edge Jersey Shorts",null,{"$f":"settier(Table1[[#This Row],[Style No.]])","v":"Fashion"}]
["47019SH","210 GSM T/C Jersey Shorts",null,{"$f":"settier(Table1[[#This Row],[Style No.]])","v":"Fashion"}]
["47020SH","210 GSM Cuffed Melange Jersey Shorts",null,{"$f":"settier(Table1[[#This Row],[Style No.]])","v":"Fashion"}]
["47021SH","210 GSM T/C Retro Style Runner Shorts In Relaxed Fit& Mid- Length With Tonal Pipings",null,{"$f":"settier(Table1[[#This Row],[Style No.]])","v":"Fashion"}]
["47022SH","210 GSM T/C Retro Style Runner Shorts In Relaxed Fit& Mid- Length With White Pipings and Stitching",null,{"$f":"settier(Table1[[#This Row],[Style No.]])","v":"Fashion"}]
["47023SH","220 GSM  Melange Jogger Shorts With White Over-Chain Stitching Around",null,{"$f":"settier(Table1[[#This Row],[Style No.]])","v":"Fashion"}]
["47024SH","210 GSM T/C Quilted Panel Jersey Tee",null,{"$f":"settier(Table1[[#This Row],[Style No.]])","v":"Fashion"}]
["47025SH","210 GSM T/C Drop Crotch Side Quilted Panel Harem Jogger",null,{"$f":"settier(Table1[[#This Row],[Style No.]])","v":"Fashion"}]
["47026SH","200 GSM French Terry Shorts With Roll-Up Cuffs",null,{"$f":"settier(Table1[[#This Row],[Style No.]])","v":"Fashion"}]
["47027SH","210 GSM  French Terry Shorts With Coated Tonal Nylon Blocking Panels & Strings",null,{"$f":"settier(Table1[[#This Row],[Style No.]])","v":"Fashion"}]
["47028SH","210 GSM  French Terry Shorts With Coated Pop Nylon Blocking Panels & Strings",null,{"$f":"settier(Table1[[#This Row],[Style No.]])","v":"Fashion"}]
["47029SH","210 GSM  French Terry Shorts With Coated Black Nylon Blocking Panels & Strings",null,{"$f":"settier(Table1[[#This Row],[Style No.]])","v":"Fashion"}]
["47030SH","210 GSM T/C Jersey & Mesh Blocking Mixed Media Crewneck",null,{"$f":"settier(Table1[[#This Row],[Style No.]])","v":"Fashion"}]
["47031SH","210 GSM T/C  Drop Crotch Jersey & Mesh Blocking Mixed Media Shorts",null,{"$f":"settier(Table1[[#This Row],[Style No.]])","v":"Fashion"}]
["47032SH","210 GSM  T/C  Drop Crotch Jersey & Mesh Blocking  Mixed Media Harem Jogger",null,{"$f":"settier(Table1[[#This Row],[Style No.]])","v":"Fashion"}]
[null,null,null,{"$f":"settier(Table1[[#This Row],[Style No.]])","v":""}]
[null,null,null,{"$f":"settier(Table1[[#This Row],[Style No.]])","v":""}]
["54010","Snow French Terry Harem Jogger",null,{"$f":"settier(Table1[[#This Row],[Style No.]])","v":"Fashion Basic"}]
["54011","Harem Skinny Denim French Terry Jogger",null,{"$f":"settier(Table1[[#This Row],[Style No.]])","v":"Fashion Basic"}]
["54012","French Terry Denim Jogger with Contrasting Waistband and Cuff",null,{"$f":"settier(Table1[[#This Row],[Style No.]])","v":"Fashion Basic"}]
["54013","Rail Road Knit Cargo Jogger",null,{"$f":"settier(Table1[[#This Row],[Style No.]])","v":"Fashion Basic"}]
["54014","Knit Denim Skinny Jogger",null,{"$f":"settier(Table1[[#This Row],[Style No.]])","v":"Fashion Basic"}]
["57010",null,null,{"$f":"settier(Table1[[#This Row],[Style No.]])","v":"Fashion"}]
[57011,null,null,{"$f":"settier(Table1[[#This Row],[Style No.]])","v":"Fashion"}]
[57012,"PRINT DENIM JOGGER SHORT",null,{"$f":"settier(Table1[[#This Row],[Style No.]])","v":"Fashion"}]
[57013,"COMING AND GOING DROP CROTCH KNIT DENIM CAPRI JOGGER",null,{"$f":"settier(Table1[[#This Row],[Style No.]])","v":"Fashion"}]
[57014,"CROPPED KNIT DENIM SHORT",null,{"$f":"settier(Table1[[#This Row],[Style No.]])","v":"Fashion"}]
[null,null,null,{"$f":"settier(Table1[[#This Row],[Style No.]])","v":""}]
[null,null,null,{"$f":"settier(Table1[[#This Row],[Style No.]])","v":""}]
[null,null,null,{"$f":"settier(Table1[[#This Row],[Style No.]])","v":""}]
[null,null,null,{"$f":"settier(Table1[[#This Row],[Style No.]])","v":""}]
[null,"",null,{"$f":"settier(Table1[[#This Row],[Style No.]])","v":""}]
["64010","",null,{"$f":"settier(Table1[[#This Row],[Style No.]])","v":"Fashion Basic"}]
["64011","",null,{"$f":"settier(Table1[[#This Row],[Style No.]])","v":"Fashion Basic"}]
[64012,"BANANDA PRINT ",null,{"$f":"settier(Table1[[#This Row],[Style No.]])","v":"Fashion Basic"}]
["77010","",null,{"$f":"settier(Table1[[#This Row],[Style No.]])","v":"Fashion"}]
["87010","",null,{"$f":"settier(Table1[[#This Row],[Style No.]])","v":"Fashion"}]
["87011","",null,{"$f":"settier(Table1[[#This Row],[Style No.]])","v":"Fashion"}]
["87012","",null,{"$f":"settier(Table1[[#This Row],[Style No.]])","v":"Fashion"}]
[87013,"COMING AND GOING DROP CROTCH DENIM CAPRI JOGGER",null,{"$f":"settier(Table1[[#This Row],[Style No.]])","v":"Fashion"}]
[87014,"EXTREME WASH DROP CROTCH DENIM JOGGER SHORT",null,{"$f":"settier(Table1[[#This Row],[Style No.]])","v":"Fashion"}]
[87015,"BIKER STYLED DROP CROTCH DENIM JOGGER SHORT",null,{"$f":"settier(Table1[[#This Row],[Style No.]])","v":"Fashion"}]
[87016,"RIPPED AND SHREDDED 2DIRECTION TRIBAL",null,{"$f":"settier(Table1[[#This Row],[Style No.]])","v":"Fashion"}]
[87017,"PRINT DENIM JOGGER SHORT",null,{"$f":"settier(Table1[[#This Row],[Style No.]])","v":"Fashion"}]
[null,null,null,{"$f":"settier(Table1[[#This Row],[Style No.]])","v":""}]
[null,null,null,{"$f":"settier(Table1[[#This Row],[Style No.]])","v":""}]
["94010","Tonal Bonded Neoprene Foam Jogger",null,{"$f":"settier(Table1[[#This Row],[Style No.]])","v":"Fashion Basic"}]
["94011P","Bonded Neoprene Foam Jogger with blocking",null,{"$f":"settier(Table1[[#This Row],[Style No.]])","v":"Fashion Basic"}]
["94011","Bonded Neoprene Foam Crew with blocking",null,{"$f":"settier(Table1[[#This Row],[Style No.]])","v":"Fashion Basic"}]
["94012","Quilted Nylon and Fleece Mixed Media Crew",null,{"$f":"settier(Table1[[#This Row],[Style No.]])","v":"Fashion Basic"}]
["94012P","Quilted Nylon and Fleece Mixed Media Jogger",null,{"$f":"settier(Table1[[#This Row],[Style No.]])","v":"Fashion Basic"}]
["97010","Scuba Crew with Embossed 00",null,{"$f":"settier(Table1[[#This Row],[Style No.]])","v":"Fashion"}]
["97010P","Scuba Jogger for Crew with Embossed 00",null,{"$f":"settier(Table1[[#This Row],[Style No.]])","v":"Fashion"}]
["97011","Color-Blocked Scuba Crew",null,{"$f":"settier(Table1[[#This Row],[Style No.]])","v":"Fashion"}]
["97011P","Color-Blocked Scuba Joggers",null,{"$f":"settier(Table1[[#This Row],[Style No.]])","v":"Fashion"}]
["97012","Scuba Crew with King Portrait Sublimation Print",null,{"$f":"settier(Table1[[#This Row],[Style No.]])","v":"Fashion"}]
["97012H","",null,{"$f":"settier(Table1[[#This Row],[Style No.]])","v":"Fashion"}]
["97012H","Scuba Hoodie with King Portrait Sublimation Print",null,{"$f":"settier(Table1[[#This Row],[Style No.]])","v":"Fashion"}]
["97012P","Scuba Jgger with King Portrait Sublimation Print",null,{"$f":"settier(Table1[[#This Row],[Style No.]])","v":"Fashion"}]
["97013","Scuba Crew with Chrysanthemum Sublimation Print",null,{"$f":"settier(Table1[[#This Row],[Style No.]])","v":"Fashion"}]
["97013H","Scuba Hoodie with Chrysanthemum Sublimation Print",null,{"$f":"settier(Table1[[#This Row],[Style No.]])","v":"Fashion"}]
["97013P","Scuba Jogger with Chrysanthemum Sublimation Print",null,{"$f":"settier(Table1[[#This Row],[Style No.]])","v":"Fashion"}]
["97014","Knight's Armor Scuba Crew",null,{"$f":"settier(Table1[[#This Row],[Style No.]])","v":"Fashion"}]
["97014H","Knight's Armor Scuba Hoodie",null,{"$f":"settier(Table1[[#This Row],[Style No.]])","v":"Fashion"}]
["97014P","Knight's Armor Scuba Jogger",null,{"$f":"settier(Table1[[#This Row],[Style No.]])","v":"Fashion"}]
["97015","PU and Mesh Mixed Media Crew with Greek Coins Sublimation Print",null,{"$f":"settier(Table1[[#This Row],[Style No.]])","v":"Fashion"}]
["97015T","Greek Coins Sublimation Printed Herther Tee",null,{"$f":"settier(Table1[[#This Row],[Style No.]])","v":"Fashion"}]
["97015P","PU and Mesh Mixed Media Joggers with Greek Coins Sublimation Print",null,{"$f":"settier(Table1[[#This Row],[Style No.]])","v":"Fashion"}]
["97016","PU and Jersey Mixed Media Crew with Tattoo Gel Print",null,{"$f":"settier(Table1[[#This Row],[Style No.]])","v":"Fashion"}]
["97016HY","PU and Jersey Mixed Media Hybrid with Tattoo Gel Print",null,{"$f":"settier(Table1[[#This Row],[Style No.]])","v":"Fashion"}]
["97016T","PU and Jersey Mixed Media Tall Tee with Tattoo Gel Print",null,{"$f":"settier(Table1[[#This Row],[Style No.]])","v":"Fashion"}]
["97019P","Acid Wash French Terry Jogger with Oxford Mixed Media Webbed Gel Print",null,{"$f":"settier(Table1[[#This Row],[Style No.]])","v":"Fashion"}]
["97019H","Acid Wash French Terry Zipup Hoodie with Oxford Mixed Media Webbed Gel Print",null,{"$f":"settier(Table1[[#This Row],[Style No.]])","v":"Fashion"}]
["97020","PU and French Terry Mixed Media Crew with Bandana Print",null,{"$f":"settier(Table1[[#This Row],[Style No.]])","v":"Fashion"}]
["97020P","PU and French Terry Mixed Media Jogger with Bandana Print",null,{"$f":"settier(Table1[[#This Row],[Style No.]])","v":"Fashion"}]
[97021,"Trioct & Mesh Mix-Media Tropical Floral Sublimation Print Crewneck",null,{"$f":"settier(Table1[[#This Row],[Style No.]])","v":"Fashion"}]
["97021SH","Trioct & Mesh Mix-Media Tropical Floral Sublimation Print Shorts",null,{"$f":"settier(Table1[[#This Row],[Style No.]])","v":"Fashion"}]
["97021JO","240GSM Tropical Floral Sublimation Print Jogger",null,{"$f":"settier(Table1[[#This Row],[Style No.]])","v":"Fashion"}]
["97021CP","240GSM Tropical Floral Sublimation Print Carpri Jogger",null,{"$f":"settier(Table1[[#This Row],[Style No.]])","v":"Fashion"}]
["97021TK","Tropical Floral Sublimation Print Jersey Tank ",null,{"$f":"settier(Table1[[#This Row],[Style No.]])","v":"Fashion"}]
["97021TK-1","Trioct & Mesh Mix-Media Tropical Floral Sublimation Print Jersey Tank ",null,{"$f":"settier(Table1[[#This Row],[Style No.]])","v":"Fashion"}]
["97021T","Tricot & Mesh Mix-Media Tropical Floral Sublimation Print Jersey Tee",null,{"$f":"settier(Table1[[#This Row],[Style No.]])","v":"Fashion"}]
["97021T-1","Tropical Floral Sublimation Print Jersey Tee",null,{"$f":"settier(Table1[[#This Row],[Style No.]])","v":"Fashion"}]
["97021CH"," Tropical Floral Sublimation Prin Poplin Chino Shorts",null,{"$f":"settier(Table1[[#This Row],[Style No.]])","v":"Fashion"}]
["97022T","Tricot &Mesh Mixed-Media Active #\"7\" Bold Gel Print Jersey Tee"]
["97022TK","Tricot &Mesh Mixed-Media Active #\"7\" Bold Gel Print Jersey Tank"]
["97022JO","Tricot &Mesh Mixed-Media Active Jogger"]
["97022SH","Tricot &Mesh Mixed-Media Active Shorts"]
[97023,"Trioct & Mesh Mix-Media Marble Texture Sublimation Print Crewneck"]
["97023JO","Trioct & Mesh Mix-Media Tropical  Marble Texture Sublimation Print Shorts"]
["97023TK","Trioct & Mesh Mix-Media Tropical  Marble Texture Sublimation Print Tank"]
["97023SH","Trioct & Mesh Mix-Media Tropical  Marble Texture Sublimation Print Shorts"]
["97023T","Trioct & Mesh Mix-Media Tropical  Marble Texture Sublimation Print Tee"]
[97024,"Tricot & Mesh Fractal Sublimation Print Crewneck"]
["97024T","Tricot & Mesh Fractal Sublimation Print Tee"]
["97024 SH","Tricot & Mesh Fractal Sublimation Print Shorts"]
["97024JO","Tricot & Mesh Fractal Sublimation Print Jogger"]
[97025,"Tricot &Mesh Mixed-Media Crushed Can Sublimation Print Crewneck"]
["97025TK","Tricot &Mesh Mixed-Media Crushed Can Sublimation Print Tank"]
["97025SH","Tricot &Mesh Mixed-Media Crushed Can Sublimation Print Short"]
["97025JO","Tricot &Mesh Mixed-Media Crushed Can Sublimation Print Jogger"]
["97025T","Tricot &Mesh Mixed-Media Crushed Can Sublimation Print Tee"]

{"sheet":"Instructions","index":1,"n_rows":20,"n_cols":5,"rows_kept":20,"cut":false,"hidden":false,"merged":[]}
["First Step","First Digit","More Instructions","Second Digit","Last 3 Digits"]
["Place a ' first","Main Body Category (Use Main Body for Mixed Media)"]
[null,"    Case \"1\"",null,"Case \"1 or 2\"","Start from 010 and just go up"]
[null,"        category = \"Shirts\"",null,"Basic"]
[null,"    Case \"2\"",null,"Case \"4 or 5\""]
[null,"        category = \"T-Shirts\"",null,"Fashion Basic"]
[null,"    Case \"3\"",null,"Case \"7 or 8\""]
[null,"        category = \"Knits\"",null,"Fashion"]
[null,"    Case \"4\""]
[null,"        category = \"Fleece\"","If set, then use the style number for crewneck, put an H for hoodies, and P for pants, and S for shirt in the set"]
[null,"    Case \"5\""]
[null,"        category = \"Fleece Bottoms\"","If just fleece bottoms with no matching top, start with 5"]
[null,"    Case \"6\""]
[null,"        category = \"Linen\""]
[null,"    Case \"7\""]
[null,"        category = \"Twill and Cargos\""]
[null,"    Case \"8\""]
[null,"        category = \"Denim\""]
[null,"    Case \"9\""]
[null,"        category = \"Special\"","If set, then use the style number for crewneck, put an H for hoodies, and P for pants, and S for shirt in the set"]